bitfinex/quotes_ETHUSD_20240717
["timestamp","ask_amount","ask_price","bid_price","bid_amount"]
[1721213202716,3.0,3494.9,3494.5,2.3573]
[1721213205863,3.0,3494.9,3494.4,0.91280411]
[1721213206751,3.0,3494.9,3494.4,3.77445411]
[1721213207526,3.0,3494.9,3494.4,0.91280411]
[1721213207730,3.86524,3495.0,3494.2,2.308]
[1721213207928,3.0,3494.9,3494.3,2.86175]
[1721213208441,3.0,3494.9,3494.3,5.72348]
[1721213208743,3.0,3494.9,3494.3,2.86173]
[1721213208944,3.0,3494.9,3494.3,5.72346]
[1721213209170,3.0,3494.9,3494.4,3.664826]
[1721213209762,3.0,3494.9,3494.4,0.803146]
[1721213210075,3.0,3494.9,3494.3,2.86175]
[1721213210377,3.0,3494.9,3494.4,5.13857]
[1721213210616,3.0,3495.0,3494.4,5.13857]
[1721213210905,4.004,3495.0,3494.4,5.13857]
[1721213211206,1.004,3495.0,3494.4,5.13857]
[1721213211423,4.004,3495.0,3494.4,5.9386]
[1721213211583,1.004,3495.0,3494.4,5.9386]
[1721213211770,4.004,3495.0,3494.4,5.9386]
[1721213212089,4.004,3495.0,3494.5,2.86162]
[1721213212910,3.0,3495.0,3494.8,2.3315]
[1721213213085,3.0,3495.3,3494.9,0.519292]
[1721213213474,2.86091,3495.4,3494.8,2.3315]
[1721213214973,3.86491,3495.4,3494.8,5.19287]
[1721213217920,1.004,3495.4,3494.8,5.19287]
[1721213218220,3.0,3495.5,3494.8,5.19287]
[1721213219078,5.86082,3495.5,3494.8,5.19287]
[1721213219280,3.86494,3495.4,3494.8,2.3315]
[1721213219591,6.22664,3495.4,3494.7,2.86143]
[1721213220183,2.86098,3495.3,3494.7,2.86143]
[1721213220592,2.86098,3495.3,3494.5,5.26356]
[1721213221412,2.86098,3495.3,3494.7,2.86147]
[1721213222437,2.86106,3495.2,3494.6,2.86148]
[1721213222616,2.86106,3495.2,3494.6,3.673984]
[1721213223028,2.86106,3495.2,3494.7,2.86147]
[1721213225549,3.3657,3495.4,3494.5,2.402]
[1721213225756,3.3657,3495.4,3494.2,5.20467]
[1721213225757,3.86533,3494.9,3494.2,5.20467]
[1721213226340,3.86533,3494.9,3494.3,0.806658]
[1721213227051,2.86133,3494.9,3494.3,0.806658]
[1721213227751,2.86133,3494.9,3494.3,3.668448]
[1721213230216,2.86133,3494.9,3494.3,2.86179]
[1721213231120,2.86133,3494.9,3494.2,2.3428]
[1721213231521,2.86133,3494.9,3494.2,5.20466]
[1721213231724,2.86133,3494.9,3494.2,8.06648]
[1721213231920,2.86133,3494.9,3494.3,2.8618]
[1721213232146,2.86133,3494.9,3494.3,3.768842]
[1721213233659,2.86124,3495.0,3494.3,3.768842]
[1721213233867,2.86124,3495.0,3494.4,2.86172]
[1721213234041,6.86503,3495.3,3494.4,2.86165]
[1721213234241,2.86121,3495.1,3494.4,2.86165]
[1721213234436,5.86123,3495.0,3494.4,3.6886646]
[1721213237781,5.86123,3495.0,3494.5,2.86163]
[1721213237942,3.0,3495.0,3494.5,2.86163]
[1721213238270,5.86116,3495.1,3494.5,2.86163]
[1721213238661,0.09357109,3495.0,3494.5,2.86163]
[1721213238831,0.09357109,3495.0,3494.6,0.36886446]
[1721213239034,5.86116,3495.1,3494.6,0.36886446]
[1721213239262,0.09357135,3495.0,3494.5,2.86163]
[1721213239662,0.09357135,3495.0,3494.4,0.8270146]
[1721213239837,5.86112,3495.2,3494.6,2.86155]
[1721213240036,5.86112,3495.2,3494.7,2.4714]
[1721213241181,0.09356643,3495.1,3494.7,2.4714]
[1721213241690,5.86112,3495.2,3494.7,2.4714]
[1721213241865,0.09356657,3495.1,3494.7,2.4714]
[1721213242067,2.95470657,3495.1,3494.7,2.4714]
[1721213242264,3.09356796,3495.0,3494.7,2.4714]
[1721213242467,3.0,3495.0,3494.7,2.4714]
[1721213243156,0.09356813,3494.9,3494.7,2.4714]
[1721213243350,0.09356813,3494.9,3494.4,0.8270146]
[1721213243351,0.09356813,3494.9,3494.4,3.6886846]
[1721213243583,0.09356813,3494.9,3494.3,2.86176]
[1721213243773,2.56626813,3494.9,3494.3,2.86176]
[1721213243968,0.09356813,3494.8,3494.3,2.86176]
[1721213244915,2.4727,3494.9,3494.3,5.7235]
[1721213245197,0.09357297,3494.8,3494.3,5.7235]
[1721213245366,0.09357297,3494.7,3494.3,6.68224291]
[1721213245693,5.86123,3495.0,3494.3,6.68224291]
[1721213245993,0.09357312,3494.9,3494.4,2.8617]
[1721213247025,0.09357312,3494.9,3494.5,2.86163]
[1721213247163,0.09357312,3494.9,3494.6,0.66821329]
[1721213247528,0.09357312,3494.8,3494.6,0.66821329]
[1721213247658,3.0,3495.1,3494.6,0.66821329]
[1721213247858,0.09356902,3495.0,3494.5,2.86163]
[1721213251436,5.86115,3495.1,3494.5,2.86163]
[1721213251600,0.09357126,3495.0,3494.5,2.86163]
[1721213254007,2.95480126,3495.0,3494.5,2.86163]
[1721213254210,0.09357126,3494.9,3494.5,2.86163]
[1721213254930,2.86123,3495.0,3494.5,2.86163]
[1721213255129,0.09357144,3494.9,3494.5,2.86163]
[1721213256131,0.09357144,3494.9,3494.3,3.82050291]
[1721213256336,2.86164,3494.5,3494.0,0.59792914]
[1721213256542,2.86164,3494.5,3493.7,6.42432404]
[1721213256543,2.86186,3494.3,3493.7,0.59792914]
[1721213256737,2.86197,3494.1,3493.6,0.050002]
[1721213256900,2.95562144,3494.0,3493.6,0.050002]
[1721213257099,0.09357144,3493.9,3493.6,0.050002]
[1721213257700,2.86221,3493.8,3493.6,0.050002]
[1721213258046,2.86229,3493.7,3493.6,0.050002]
[1721213260641,3.86629,3493.7,3493.6,0.050002]
[1721213261031,9.72858,3493.7,3493.6,0.050002]
[1721213261354,5.86229,3493.7,3493.6,0.050002]
[1721213262805,3.0,3493.7,3493.6,0.050002]
[1721213263001,3.0,3493.8,3493.6,0.050002]
[1721213264671,5.34677,3494.1,3493.6,0.050002]
[1721213264672,3.0,3494.0,3493.6,0.050002]
[1721213266229,2.86215,3493.9,3493.6,0.050002]
[1721213266535,3.0,3493.8,3493.6,0.050002]
[1721213269072,3.0,3493.8,3493.7,5.13529]
[1721213269252,2.86172,3494.4,3493.7,5.7542192]
[1721213270276,2.86162,3494.6,3493.6,3.916302]
[1721213270277,1.004,3493.8,3493.6,0.050002]
[1721213270978,2.86218,3493.9,3493.6,0.050002]
[1721213271336,4.004,3493.8,3493.6,0.050002]
[1721213271704,2.86229,3493.7,3493.6,0.050002]
[1721213272341,5.86229,3493.7,3493.6,0.050002]
[1721213275903,3.0,3493.7,3493.6,0.050002]
[1721213276107,3.0,3493.8,3493.6,0.050002]
[1721213280606,2.86229,3493.7,3493.6,0.050002]
[1721213280956,5.86229,3493.7,3493.6,0.050002]
[1721213281194,3.0,3493.7,3493.6,0.050002]
[1721213281394,3.0,3493.8,3493.6,0.050002]
[1721213281596,3.0,3493.9,3493.6,0.050002]
[1721213281971,2.86227,3493.8,3493.6,0.050002]
[1721213282175,5.86229,3493.7,3493.6,0.050002]
[1721213283780,8.72458,3493.7,3493.6,0.050002]
[1721213287578,14.62127,3493.7,3493.6,0.050002]
[1721213288123,14.71489092,3493.7,3493.6,0.050002]
[1721213289774,17.57718092,3493.7,3493.6,0.050002]
[1721213290220,19.07479931,3493.7,3493.6,0.050002]
[1721213290536,17.57718092,3493.7,3493.6,0.050002]
[1721213293086,17.57718575,3493.7,3493.6,0.050002]
[1721213294618,19.07419432,3493.7,3493.6,0.050002]
[1721213294805,19.07419432,3493.7,3491.7,10.30393]
[1721213294806,4.59078525,3493.7,3491.7,2.4823]
[1721213295016,2.86378,3491.9,3491.7,2.4823]
[1721213296511,2.86385,3491.8,3491.7,2.4823]
[1721213298242,2.86385,3491.8,3491.4,2.332]
[1721213298424,2.86385,3491.8,3491.4,2.952041]
[1721213299802,2.86394,3491.7,3491.4,2.952041]
[1721213300108,2.86403,3491.6,3491.4,2.332]
[1721213300644,2.86394,3491.7,3491.4,2.332]
[1721213301314,2.86401,3491.6,3491.4,2.332]
[1721213304149,2.86401,3491.6,3491.1,2.4382]
[1721213304947,2.86418,3491.4,3491.1,2.4382]
[1721213309661,2.86444,3491.1,3490.7,2.2759]
[1721213309957,2.86456,3491.0,3490.3,2.2759]
[1721213310108,2.86468,3490.8,3490.3,2.2759]
[1721213310761,2.86478,3490.7,3490.3,2.2759]
[1721213313034,2.86489,3490.6,3490.1,1.004]
[1721213315145,5.7298,3490.6,3489.8,2.86545]
[1721213315401,2.8653,3490.1,3489.3,5.15688]
[1721213316889,2.86522,3490.2,3489.4,3.86981]
[1721213317260,2.86526,3490.1,3489.4,3.86981]
[1721213317669,2.86526,3490.1,3489.5,2.86573]
[1721213317870,2.86526,3490.1,3489.5,3.768391]
[1721213318592,2.86526,3490.1,3489.5,0.902661]
[1721213321108,5.73026,3490.3,3489.5,3.768381]
[1721213321265,2.86521,3490.2,3489.5,3.768381]
[1721213321706,2.86529,3490.1,3489.5,3.768381]
[1721213324299,2.86511,3490.3,3489.6,2.86565]
[1721213324498,2.86522,3490.2,3489.5,3.768381]
[1721213325135,2.86511,3490.3,3489.6,2.86563]
[1721213326311,2.86519,3490.2,3489.6,2.86563]
[1721213326644,2.86506,3490.4,3489.6,2.86563]
[1721213327137,2.86518,3490.2,3489.6,2.86563]
[1721213327689,2.86518,3490.2,3489.4,6.73556]
[1721213327940,2.86525,3490.1,3489.4,5.7315]
[1721213328540,2.86525,3490.1,3489.5,2.86572]
[1721213329400,2.86542,3489.9,3489.1,2.86605]
[1721213329710,2.86542,3489.9,3489.2,2.86596]
[1721213330091,2.86542,3489.9,3489.2,2.86591]
[1721213330638,2.86558,3489.7,3489.0,5.12091]
[1721213331935,2.86542,3489.9,3489.0,6.12491]
[1721213332244,2.86541,3489.9,3489.2,2.86598]
[1721213332393,2.86541,3489.9,3489.2,3.86998]
[1721213332596,2.86528,3490.1,3489.2,3.86998]
[1721213332842,2.86542,3489.9,3489.2,3.86998]
[1721213333201,2.86549,3489.8,3489.2,3.86998]
[1721213334639,2.86549,3489.8,3489.2,2.86598]
[1721213335638,2.86528,3490.1,3489.2,5.73189]
[1721213335835,2.86541,3489.9,3489.2,2.86591]
[1721213336027,2.8655,3489.8,3489.2,2.86591]
[1721213338247,2.8655,3489.8,3489.0,7.98701]
[1721213338406,2.8655,3489.8,3489.0,5.12088]
[1721213338608,2.8655,3489.8,3489.1,2.86606]
[1721213339623,2.8655,3489.8,3489.1,5.73206]
[1721213339819,5.73106,3489.8,3489.1,2.866]
[1721213340343,5.28998,3489.6,3488.9,2.86619]
[1721213340908,5.28998,3489.6,3488.7,2.4155]
[1721213340909,2.86574,3489.5,3488.7,5.28182]
[1721213341111,3.86974,3489.5,3488.8,2.86626]
[1721213341944,2.86574,3489.5,3488.9,2.86623]
[1721213343007,2.86574,3489.5,3488.7,5.28182]
[1721213343209,2.8659,3489.3,3488.7,2.4155]
[1721213343649,2.86586,3489.4,3488.7,2.4155]
[1721213343857,2.86586,3489.4,3488.5,0.008]
[1721213343858,1.004,3489.1,3488.5,0.008]
[1721213344015,6.17459,3489.1,3488.5,0.008]
[1721213344212,1.004,3488.7,3488.5,0.008]
[1721213344540,3.87042,3488.7,3488.5,0.008]
[1721213345118,1.004,3488.7,3488.5,0.008]
[1721213345319,2.86647,3488.6,3488.5,0.008]
[1721213346956,11.55844,3488.6,3488.5,0.008]
[1721213347570,14.42491,3488.6,3488.5,0.008]
[1721213351088,3.0,3488.6,3488.5,0.008]
[1721213351234,8.22267,3488.6,3488.5,0.008]
[1721213351571,5.86647,3488.6,3488.5,0.008]
[1721213352959,9.28294,3488.6,3488.5,0.008]
[1721213357272,12.14941,3488.6,3488.5,0.008]
[1721213357875,9.28294,3488.6,3488.5,0.008]
[1721213358255,12.14941,3488.6,3488.5,0.008]
[1721213358450,9.28294,3488.6,3488.5,0.008]
[1721213358857,12.14941,3488.6,3488.5,0.008]
[1721213359256,14.44201,3488.6,3488.5,0.008]
[1721213361619,17.30848,3488.6,3488.5,0.008]
[1721213363274,13.75728,3488.3,3488.2,0.0242424]
[1721213363477,19.72528,3488.3,3488.2,0.0242424]
[1721213364990,19.72528,3488.3,3488.2,2.4e-06]
[1721213365702,20.13371266,3488.3,3488.2,2.4e-06]
[1721213366896,23.40090275,3488.3,3488.2,2.4e-06]
[1721213373025,20.53418275,3488.3,3488.2,2.4e-06]
[1721213373245,19.72528,3488.3,3488.2,2.4e-06]
[1721213373536,14.01816,3488.3,3488.2,2.4e-06]
[1721213374222,16.88488,3488.3,3488.2,2.4e-06]
[1721213374628,17.43488,3488.3,3488.2,2.4e-06]
[1721213378492,14.01816,3488.3,3488.2,2.4e-06]
[1721213379220,11.60016,3488.3,3488.2,2.4e-06]
[1721213379420,5.73344,3488.3,3488.2,2.4e-06]
[1721213379844,8.60016,3488.3,3488.2,2.4e-06]
[1721213380634,5.73344,3488.3,3488.2,2.4e-06]
[1721213380962,8.73344,3488.3,3488.2,2.4e-06]
[1721213381141,9.28344,3488.3,3488.2,2.4e-06]
[1721213381473,6.28344,3488.3,3488.2,2.4e-06]
[1721213382255,9.15016,3488.3,3488.2,2.4e-06]
[1721213382861,12.15016,3488.3,3488.2,2.4e-06]
[1721213385031,12.15016,3488.3,3488.2,2.4e-06]
[1721213385828,9.28344,3488.3,3488.2,2.4e-06]
[1721213386165,12.15016,3488.3,3488.2,2.4e-06]
[1721213387343,12.24371877,3488.3,3488.2,2.4e-06]
[1721213387945,14.60761877,3488.3,3488.2,2.4e-06]
[1721213388742,17.47433877,3488.3,3488.2,2.4e-06]
[1721213389466,17.47433294,3488.3,3488.2,2.4e-06]
[1721213390271,18.42122989,3488.3,3488.2,2.4e-06]
[1721213391334,19.91991809,3488.3,3488.2,2.4e-06]
[1721213391529,17.05319809,3488.3,3488.2,2.4e-06]
[1721213391850,18.42122989,3488.3,3488.2,2.4e-06]
[1721213392655,17.38078,3488.3,3488.2,2.4e-06]
[1721213392837,18.42142094,3488.3,3488.2,2.4e-06]
[1721213393856,20.22028121,3488.3,3488.2,2.4e-06]
[1721213394374,22.63828121,3488.3,3488.2,2.4e-06]
[1721213394798,23.70614094,3488.3,3488.2,2.4e-06]
[1721213395158,20.83942094,3488.3,3488.2,2.4e-06]
[1721213395366,23.70614094,3488.3,3488.2,2.4e-06]
[1721213395801,20.83942094,3488.3,3488.2,2.4e-06]
[1721213396023,20.83931479,3488.3,3488.2,2.4e-06]
[1721213396164,22.63808836,3488.3,3488.2,2.4e-06]
[1721213396366,20.83931479,3488.3,3488.2,2.4e-06]
[1721213396862,22.63810482,3488.3,3488.2,2.4e-06]
[1721213397295,20.83931479,3488.3,3488.2,2.4e-06]
[1721213399165,19.79878,3488.3,3488.2,2.4e-06]
[1721213399504,20.83936337,3488.3,3488.2,2.4e-06]
[1721213399862,22.93909919,3488.3,3488.2,2.4e-06]
[1721213400062,20.83936337,3488.3,3488.2,2.4e-06]
[1721213400310,25.80581919,3488.3,3488.2,2.4e-06]
[1721213401013,23.70608337,3488.3,3488.2,2.4e-06]
[1721213401370,21.28808337,3488.3,3488.2,2.4e-06]
[1721213401569,20.83936337,3488.3,3488.2,2.4e-06]
[1721213401797,20.83942719,3488.3,3488.2,2.4e-06]
[1721213402019,14.74129265,3488.3,3488.2,2.4e-06]
[1721213402324,14.44163834,3488.3,3488.2,2.4e-06]
[1721213402494,12.64080719,3488.3,3488.2,2.4e-06]
[1721213402684,15.50752719,3488.3,3488.2,2.4e-06]
[1721213402885,20.25072719,3488.3,3488.2,2.4e-06]
[1721213404130,20.80166456,3488.3,3488.2,2.4e-06]
[1721213404297,18.47646456,3488.3,3488.2,2.4e-06]
[1721213404926,14.56816,3488.3,3488.2,2.4e-06]
[1721213405213,18.47673261,3488.3,3488.2,2.4e-06]
[1721213405419,16.05873261,3488.3,3488.2,2.4e-06]
[1721213405732,12.64201261,3488.3,3488.2,2.4e-06]
[1721213406083,14.44527479,3488.3,3488.2,2.4e-06]
[1721213406277,12.64201261,3488.3,3488.2,2.4e-06]
[1721213407930,12.64201261,3488.3,3488.2,2.3314024]
[1721213408234,12.15016,3488.3,3488.2,2.3314024]
[1721213408401,14.99638577,3488.3,3488.2,2.3314024]
[1721213408608,13.19211903,3488.3,3488.2,2.4e-06]
[1721213409128,10.32539903,3488.3,3488.2,2.4e-06]
[1721213411442,10.32554483,3488.3,3488.2,2.4e-06]
[1721213414238,4.04210483,3488.3,3488.2,2.4277024]
[1721213414440,2.86661,3488.5,3488.2,2.67047264]
[1721213414647,4.67072043,3488.7,3488.2,2.67047264]
[1721213414648,0.09371669,3488.4,3488.2,2.67047264]
[1721213414815,0.09371669,3488.3,3488.2,2.67047264]
[1721213415203,0.09371669,3488.4,3488.2,2.67047264]
[1721213415408,0.09371669,3488.3,3488.2,2.67047264]
[1721213415725,0.09371669,3488.4,3488.2,2.67047264]
[1721213415925,3.09371669,3488.4,3488.2,2.67047264]
[1721213416158,1.50325145,3488.9,3488.6,2.3137]
[1721213416337,0.29911252,3489.7,3488.6,2.3137]
[1721213416338,2.86615,3489.0,3488.6,2.3137]
[1721213416654,2.86658,3488.5,3488.2,2.4e-06]
[1721213416804,2.86672,3488.3,3488.2,2.4e-06]
[1721213417609,5.73344,3488.3,3488.2,2.4e-06]
[1721213417832,5.82712272,3488.3,3488.2,2.4e-06]
[1721213418619,6.37712272,3488.3,3488.2,2.4e-06]
[1721213420422,6.28344,3488.3,3488.2,2.4e-06]
[1721213422547,5.73344,3488.3,3488.2,2.4e-06]
[1721213424610,8.60016,3488.3,3488.2,2.4e-06]
[1721213424812,15.11045976,3488.3,3488.2,2.4e-06]
[1721213425036,16.05747017,3488.3,3488.2,2.4e-06]
[1721213425760,17.85614713,3488.3,3488.2,2.4e-06]
[1721213425918,17.85608524,3488.3,3488.2,2.4e-06]
[1721213427116,15.01688,3488.3,3488.2,2.4e-06]
[1721213427460,16.0573839,3488.3,3488.2,2.4e-06]
[1721213428656,18.9241039,3488.3,3488.2,2.4e-06]
[1721213430341,17.8836,3488.3,3488.2,2.4e-06]
[1721213430666,18.92411433,3488.3,3488.2,2.4e-06]
[1721213433723,20.3016,3488.3,3488.2,2.4e-06]
[1721213433957,22.49321533,3488.3,3488.2,2.4e-06]
[1721213434323,20.3952004,3488.3,3488.2,2.4e-06]
[1721213436852,20.3016,3488.3,3488.2,2.4e-06]
[1721213437070,20.39518669,3488.3,3488.2,2.4e-06]
[1721213438339,22.49180032,3488.3,3488.2,2.4e-06]
[1721213438570,20.39518669,3488.3,3488.2,2.4e-06]
[1721213439067,22.49180032,3488.3,3488.2,2.4e-06]
[1721213439562,20.39518669,3488.3,3488.2,2.4e-06]
[1721213439769,22.49180032,3488.3,3488.2,2.4e-06]
[1721213439982,20.39518669,3488.3,3488.2,2.4e-06]
[1721213440196,20.3016,3488.3,3488.2,2.4e-06]
[1721213440342,22.49161197,3488.3,3488.2,2.4e-06]
[1721213441060,20.39519106,3488.3,3488.2,2.4e-06]
[1721213441886,22.49161197,3488.3,3488.2,2.4e-06]
[1721213442191,20.39519106,3488.3,3488.2,2.4e-06]
[1721213445949,22.49077664,3488.3,3488.2,2.4e-06]
[1721213446597,20.3016,3488.3,3488.2,2.4e-06]
[1721213446758,22.49072719,3488.3,3488.2,2.4e-06]
[1721213447279,22.78986718,3488.3,3488.2,2.4e-06]
[1721213449868,20.69433959,3488.3,3488.2,2.4e-06]
[1721213450070,22.78920481,3488.3,3488.2,2.4e-06]
[1721213453069,20.60073999,3488.3,3488.2,2.4e-06]
[1721213453270,20.69432664,3488.3,3488.2,2.4e-06]
[1721213453500,20.60073999,3488.3,3488.2,2.4e-06]
[1721213453704,22.78853231,3488.3,3488.2,2.4e-06]
[1721213454115,20.69432648,3488.3,3488.2,2.4e-06]
[1721213454319,19.28432648,3488.3,3488.2,2.4e-06]
[1721213454614,17.72632648,3488.3,3488.2,2.4e-06]
[1721213454952,17.72632648,3488.3,3488.2,2.4767024]
[1721213454953,10.00088648,3488.3,3488.2,2.4767024]
[1721213455226,9.60816,3488.3,3488.2,2.4767024]
[1721213455404,9.70177458,3488.3,3488.2,2.4767024]
[1721213455722,9.70177502,3488.3,3488.2,2.4767024]
[1721213456268,9.60816,3488.3,3488.2,2.4767024]
[1721213456400,12.60816,3488.3,3488.2,2.4767024]
[1721213457220,13.2517743,3488.3,3488.2,2.4767024]
[1721213458253,12.2437743,3488.3,3488.2,2.4767024]
[1721213458744,9.3770543,3488.3,3488.2,2.4767024]
[1721213459043,9.28344,3488.3,3488.2,2.4767024]
[1721213460932,6.28344,3488.3,3488.2,2.4767024]
[1721213461238,5.73344,3488.3,3488.2,2.4767024]
[1721213462640,8.73344,3488.3,3488.2,2.4767024]
[1721213463159,8.73344,3488.3,3488.2,2.4e-06]
[1721213463457,9.37700034,3488.3,3488.2,2.4e-06]
[1721213463615,9.28344,3488.3,3488.2,2.4e-06]
[1721213465872,12.24369496,3488.3,3488.2,2.4e-06]
[1721213466626,16.15829889,3488.3,3488.2,2.4e-06]
[1721213466870,14.66169496,3488.3,3488.2,2.4e-06]
[1721213467070,17.52841496,3488.3,3488.2,2.4e-06]
[1721213468379,17.43488,3488.3,3488.2,2.4e-06]
[1721213468676,22.87750145,3488.3,3488.2,2.4e-06]
[1721213468832,24.97242827,3488.3,3488.2,2.4e-06]
[1721213469029,22.87750145,3488.3,3488.2,2.4e-06]
[1721213471474,22.87749882,3488.3,3488.2,2.4e-06]
[1721213472266,20.01077882,3488.3,3488.2,2.4e-06]
[1721213472468,19.07447686,3488.3,3488.2,2.4e-06]
[1721213472679,16.97837882,3488.3,3488.2,2.4e-06]
[1721213472976,21.94119686,3488.3,3488.2,2.4e-06]
[1721213473482,19.07454848,3488.3,3488.2,2.4e-06]
[1721213473630,16.97837882,3488.3,3488.2,2.4e-06]
[1721213473860,17.52837882,3488.3,3488.2,2.4e-06]
[1721213474501,16.97837882,3488.3,3488.2,2.4e-06]
[1721213474811,16.97842558,3488.3,3488.2,2.4e-06]
[1721213475391,14.11170558,3488.3,3488.2,2.4e-06]
[1721213475695,16.97842558,3488.3,3488.2,2.4e-06]
[1721213475871,17.52842558,3488.3,3488.2,2.4e-06]
[1721213476068,19.32608295,3488.3,3488.2,2.4e-06]
[1721213476394,19.23252683,3488.3,3488.2,2.4e-06]
[1721213476580,19.32609601,3488.3,3488.2,2.4e-06]
[1721213476782,17.52844918,3488.3,3488.2,2.4e-06]
[1721213477796,17.43488,3488.3,3488.2,2.4e-06]
[1721213478100,17.52844314,3488.3,3488.2,2.4e-06]
[1721213481182,17.52843868,3488.3,3488.2,2.4e-06]
[1721213484466,17.52843439,3488.3,3488.2,2.4e-06]
[1721213484969,20.39515439,3488.3,3488.2,2.4e-06]
[1721213485164,22.49219917,3488.3,3488.2,2.4e-06]
[1721213487378,19.62547917,3488.3,3488.2,2.4e-06]
[1721213487684,22.49128874,3488.3,3488.2,2.4e-06]
[1721213488191,19.62456874,3488.3,3488.2,2.4e-06]
[1721213488392,22.49128874,3488.3,3488.2,2.4e-06]
[1721213490318,19.49128874,3488.3,3488.2,2.4e-06]
[1721213491126,19.49119422,3488.3,3488.2,2.4e-06]
[1721213491538,17.39509621,3488.3,3488.2,2.4e-06]
[1721213491826,19.49155495,3488.3,3488.2,2.4e-06]
[1721213492186,17.07355495,3488.3,3488.2,2.4e-06]
[1721213492412,18.08155495,3488.3,3488.2,2.4e-06]
[1721213494003,16.93140714,3488.3,3488.2,2.4e-06]
[1721213494205,16.93140657,3488.3,3488.2,2.4e-06]
[1721213497122,19.02834068,3488.3,3488.2,2.4e-06]
[1721213497533,19.02845836,3488.3,3488.2,2.4e-06]
[1721213497835,16.93161755,3488.3,3488.2,2.4e-06]
[1721213498031,19.02830915,3488.3,3488.2,2.4e-06]
[1721213500014,19.02855785,3488.3,3488.2,2.4e-06]
[1721213500236,16.16183785,3488.3,3488.2,2.4e-06]
[1721213500552,14.06489755,3488.3,3488.2,2.4e-06]
[1721213500750,13.97126946,3488.3,3488.2,2.4e-06]
[1721213500960,14.06476953,3488.3,3488.2,2.4e-06]
[1721213502547,17.06476953,3488.3,3488.2,2.4e-06]
[1721213503431,19.16174621,3488.3,3488.2,2.4e-06]
[1721213504035,17.06473622,3488.3,3488.2,2.4e-06]
[1721213505159,19.93145622,3488.3,3488.2,2.4e-06]
[1721213505740,22.02879897,3488.3,3488.2,2.4e-06]
[1721213507267,18.8916,3488.3,3488.2,2.4e-06]
[1721213507581,22.02982905,3488.3,3488.2,2.4e-06]
[1721213508127,19.16310905,3488.3,3488.2,2.4e-06]
[1721213508356,12.64003851,3488.3,3488.2,2.3957024]
[1721213508537,13.64803851,3488.3,3488.2,2.3957024]
[1721213508755,15.44733244,3488.3,3488.2,2.3957024]
[1721213509541,13.64803851,3488.3,3488.2,2.3957024]
[1721213509873,16.51475851,3488.3,3488.2,2.4e-06]
[1721213510465,16.02488,3488.3,3488.2,2.4e-06]
[1721213510790,17.06505711,3488.3,3488.2,2.4e-06]
[1721213511080,14.19833711,3488.3,3488.2,2.4e-06]
[1721213513210,16.29831934,3488.3,3488.2,2.4e-06]
[1721213513377,17.06505711,3488.3,3488.2,2.4e-06]
[1721213513716,13.15816,3488.3,3488.2,2.4e-06]
[1721213514012,14.19834436,3488.3,3488.2,2.4e-06]
[1721213514770,17.06506436,3488.3,3488.2,2.4e-06]
[1721213515015,14.19834436,3488.3,3488.2,2.4e-06]
[1721213515214,17.06506436,3488.3,3488.2,2.4e-06]
[1721213517218,17.06505201,3488.3,3488.2,2.4e-06]
[1721213517910,14.19833201,3488.3,3488.2,2.4e-06]
[1721213518131,16.30016939,3488.3,3488.2,2.4e-06]
[1721213518425,13.64835662,3488.3,3488.2,2.4588024]
[1721213519619,14.19835662,3488.3,3488.2,2.4588024]
[1721213520208,13.15816,3488.3,3488.2,2.4e-06]
[1721213520407,14.19837395,3488.3,3488.2,2.4e-06]
[1721213520714,19.16677124,3488.3,3488.2,2.4e-06]
[1721213521215,17.06509395,3488.3,3488.2,2.4e-06]
[1721213521775,11.87512501,3488.3,3488.2,2.4e-06]
[1721213522112,13.64837395,3488.3,3488.2,2.4e-06]
[1721213522817,15.44955739,3488.3,3488.2,2.4e-06]
[1721213523032,19.84574333,3488.3,3488.2,2.4e-06]
[1721213523195,20.85848424,3488.3,3488.2,2.4e-06]
[1721213523374,5.73542,3487.1,3487.0,2.3901]
[1721213523575,6.83694985,3487.1,3487.0,2.3901]
[1721213523988,9.83694985,3487.1,3487.0,2.3901]
[1721213524187,10.38694985,3487.1,3487.0,2.3901]
[1721213524436,10.29342,3487.1,3487.0,2.3901]
[1721213524605,10.38691375,3487.1,3487.0,2.3901]
[1721213525126,13.25462375,3487.1,3487.0,2.3901]
[1721213525332,14.75501008,3487.1,3487.0,2.3901]
[1721213525690,14.20100333,3487.1,3487.0,2.3901]
[1721213525912,8.73542,3487.1,3487.0,2.3901]
[1721213526088,8.82892076,3487.1,3487.0,2.3901]
[1721213526287,9.83692076,3487.1,3487.0,2.3901]
[1721213526515,10.38692076,3487.1,3487.0,2.3901]
[1721213527523,14.75506449,3487.1,3487.0,2.3901]
[1721213527735,15.70151499,3487.1,3487.0,2.3901]
[1721213527937,11.88735449,3487.1,3487.0,2.3901]
[1721213528408,14.75506449,3487.1,3487.0,2.3901]
[1721213529150,13.16113,3487.1,3487.0,2.3901]
[1721213529455,10.38692169,3487.1,3487.0,2.3901]
[1721213529746,13.25463169,3487.1,3487.0,2.3901]
[1721213531826,10.38692169,3487.1,3487.0,2.3901]
[1721213532017,13.25463169,3487.1,3487.0,2.3901]
[1721213532461,13.25463014,3487.1,3487.0,2.3901]
[1721213532953,10.38692014,3487.1,3487.0,2.3901]
[1721213533819,13.25463014,3487.1,3487.0,2.3901]
[1721213534035,9.37892014,3487.1,3487.0,2.3901]
[1721213535705,9.37892377,3487.1,3487.0,2.3901]
[1721213536210,10.38692377,3487.1,3487.0,2.3901]
[1721213537818,9.37892377,3487.1,3487.0,2.3901]
[1721213538944,9.37888552,3487.1,3487.0,2.3901]
[1721213539129,9.37888708,3487.1,3487.0,2.3901]
[1721213539853,12.24659708,3487.1,3487.0,2.3901]
[1721213540058,13.25459708,3487.1,3487.0,2.3901]
[1721213540462,10.38688708,3487.1,3487.0,2.3901]
[1721213540624,13.25459708,3487.1,3487.0,2.3901]
[1721213541721,5.7359,3486.8,3486.7,2.3419017]
[1721213541957,5.82936708,3486.8,3486.7,2.3419017]
[1721213542322,5.82936043,3486.8,3486.7,2.3419017]
[1721213545478,5.7359,3486.8,3486.7,2.3419017]
[1721213545650,5.82936232,3486.8,3486.7,2.3419017]
[1721213548776,5.7359,3486.8,3486.7,2.3419017]
[1721213548994,5.82936167,3486.8,3486.7,2.3419017]
[1721213553682,5.82936167,3486.8,3486.7,2.3419017]
[1721213555474,5.82935179,3486.8,3486.7,2.3419017]
[1721213558442,5.82936916,3486.8,3486.7,2.3419017]
[1721213561678,5.7359,3486.8,3486.7,2.3419017]
[1721213561988,5.82937379,3486.8,3486.7,2.3419017]
[1721213564370,2.96142379,3486.8,3486.7,2.3419017]